[Event "Titled Tuesday Blitz November 29 Late 2022"]
[White "Manelyuk, Daniil"]
[Black "Sorokin, Aleksey"]
[WhiteFideId "44173920"]
[BlackFideId "24176460"]
[WhiteElo "2209"]
[BlackElo "2476"]
[Result "1-0"]
[Round "02"]
[TimeControl "180+1"]
[Date "2022.11.30"]
[WhiteClock "0:00:06"]
[BlackClock "0:00:05"]

1. e4 {[%clk 0:03:00]}  c5 {[%clk 0:02:56]} 2. Nf3 {[%clk 0:03:00]}  Nc6 {[%clk 0:02:56]} 3. d4 {[%clk 0:03:00]}  cxd4 {[%clk 0:02:56]} 4. Nxd4 {[%clk 0:03:01]}  Nf6 {[%clk 0:02:56]} 5. Nc3 {[%clk 0:03:01]}  e5 {[%clk 0:02:57]} 6. Ndb5 {[%clk 0:03:01]}  d6 {[%clk 0:02:57]} 7. Bg5 {[%clk 0:03:01]}  a6 {[%clk 0:02:57]} 8. Na3 {[%clk 0:03:01]}  b5 {[%clk 0:02:57]} 9. Nd5 {[%clk 0:03:02]}  Be7 {[%clk 0:02:56]} 10. Bxf6 {[%clk 0:03:02]}  Bxf6 {[%clk 0:02:56]} 11. c3 {[%clk 0:03:02]}  O-O {[%clk 0:02:54]} 12. Nc2 {[%clk 0:03:02]}  Rb8 {[%clk 0:02:54]} 13. Bd3 {[%clk 0:02:58]}  Bg5 {[%clk 0:02:50]} 14. h4 {[%clk 0:02:57]}  Bh6 {[%clk 0:02:49]} 15. g4 {[%clk 0:02:57]}  Bf4 {[%clk 0:02:46]} 16. Nxf4 {[%clk 0:02:47]}  exf4 {[%clk 0:02:46]} 17. f3 {[%clk 0:02:48]}  Be6 {[%clk 0:02:36]} 18. Nd4 {[%clk 0:02:44]}  Nxd4 {[%clk 0:02:25]} 19. cxd4 {[%clk 0:02:44]}  Bc4 {[%clk 0:02:25]} 20. b3 {[%clk 0:02:37]}  Bxd3 {[%clk 0:02:25]} 21. Qxd3 {[%clk 0:02:38]}  Rc8 {[%clk 0:02:23]} 22. Ke2 {[%clk 0:02:35]}  b4 {[%clk 0:02:11]} 23. Qd2 {[%clk 0:02:33]}  Rc3 {[%clk 0:02:02]} 24. Rac1 {[%clk 0:02:22]}  Re3+ {[%clk 0:01:52]} 25. Kf2 {[%clk 0:02:18]}  h5 {[%clk 0:01:38]} 26. g5 {[%clk 0:02:16]}  d5 {[%clk 0:01:33]} 27. e5 {[%clk 0:02:06]}  Qd7 {[%clk 0:01:33]} 28. Kg2 {[%clk 0:01:56]}  Qf5 {[%clk 0:01:20]} 29. Rhe1 {[%clk 0:01:51]}  Rd3 {[%clk 0:01:05]} 30. Qc2 {[%clk 0:01:51]}  Qg6 {[%clk 0:00:54]} 31. e6 {[%clk 0:01:39]}  fxe6 {[%clk 0:00:51]} 32. Red1 {[%clk 0:01:24]}  Rxd1 {[%clk 0:00:42]} 33. Qxg6 {[%clk 0:01:24]}  Rxc1 {[%clk 0:00:42]} 34. Qxe6+ {[%clk 0:01:24]}  Kh7 {[%clk 0:00:38]} 35. Qxd5 {[%clk 0:01:20]}  Re1 {[%clk 0:00:34]} 36. Qc5 {[%clk 0:01:06]}  Re2+ {[%clk 0:00:30]} 37. Kh3 {[%clk 0:01:02]}  Rf7 {[%clk 0:00:21]} 38. g6+ {[%clk 0:00:45]}  Kxg6 {[%clk 0:00:20]} 39. Qg5+ {[%clk 0:00:46]}  Kh7 {[%clk 0:00:21]} 40. Qxh5+ {[%clk 0:00:46]}  Kg8 {[%clk 0:00:21]} 41. d5 {[%clk 0:00:46]}  Rd2 {[%clk 0:00:19]} 42. Qe5 {[%clk 0:00:45]}  Rf6 {[%clk 0:00:17]} 43. h5 {[%clk 0:00:40]}  a5 {[%clk 0:00:16]} 44. Qe8+ {[%clk 0:00:28]}  Kh7 {[%clk 0:00:16]} 45. Qe4+ {[%clk 0:00:18]}  Kh6 {[%clk 0:00:16]} 46. Qe5 {[%clk 0:00:17]}  Rxa2 {[%clk 0:00:14]} 47. Qe8 {[%clk 0:00:14]}  Rd2 {[%clk 0:00:13]} 48. Qh8+ {[%clk 0:00:12]}  Kg5 {[%clk 0:00:13]} 49. Qxg7+ {[%clk 0:00:12]}  Kf5 {[%clk 0:00:14]} 50. h6 {[%clk 0:00:10]}  Rd1 {[%clk 0:00:13]} 51. Qg4+ {[%clk 0:00:03]}  Ke5 {[%clk 0:00:13]} 52. Qg5+ {[%clk 0:00:03]}  Rf5 {[%clk 0:00:12]} 53. Qe7+ {[%clk 0:00:03]}  Kxd5 {[%clk 0:00:06]} 54. Qe4+ {[%clk 0:00:04]}  Kd6 {[%clk 0:00:05]} 55. Qxf5 {[%clk 0:00:05]}  Rh1+ {[%clk 0:00:03]} 56. Kg4 {[%clk 0:00:05]}  a4 {[%clk 0:00:04]} 57. Qxf4+ {[%clk 0:00:05]}  Kc5 {[%clk 0:00:05]} 58. bxa4 {[%clk 0:00:06]}  b3 {[%clk 0:00:05]} 59. h7 {[%clk 0:00:04]}  b2 {[%clk 0:00:04]} 60. Qe5+ {[%clk 0:00:05]}  Kc4 {[%clk 0:00:05]} 61. Qxb2 {[%clk 0:00:05]}  Rxh7 {[%clk 0:00:05]} 62. Qc2+ {[%clk 0:00:06]} 1-0


[Site "https://www.chess.com"]

[Event "Titled Tuesday Blitz November 29 Late 2022"]
[White "Martinez Ramirez, Lennis"]
[Black "Quinones Garcia, Santiago"]
[WhiteFideId "3509079"]
[BlackFideId "4408497"]
[WhiteElo "2439"]
[BlackElo "2249"]
[Result "1-0"]
[Round "02"]
[TimeControl "180+1"]
[Date "2022.11.30"]
[WhiteClock "0:01:47"]
[BlackClock "0:00:02"]

1. e4 {[%clk 0:03:00]}  c5 {[%clk 0:02:54]} 2. Nf3 {[%clk 0:03:00]}  g6 {[%clk 0:02:50]} 3. d4 {[%clk 0:02:55]}  cxd4 {[%clk 0:02:50]} 4. Qxd4 {[%clk 0:02:55]}  Nf6 {[%clk 0:02:50]} 5. e5 {[%clk 0:02:55]}  Nc6 {[%clk 0:02:51]} 6. Qa4 {[%clk 0:02:55]}  Nd5 {[%clk 0:02:51]} 7. Qb3 {[%clk 0:02:55]}  Nb6 {[%clk 0:02:49]} 8. a4 {[%clk 0:02:54]}  d6 {[%clk 0:02:39]} 9. a5 {[%clk 0:02:51]}  Nd7 {[%clk 0:02:30]} 10. exd6 {[%clk 0:02:35]}  exd6 {[%clk 0:02:29]} 11. Bf4 {[%clk 0:02:31]}  Qf6 {[%clk 0:02:22]} 12. Bg5 {[%clk 0:02:29]}  Qe6+ {[%clk 0:02:16]} 13. Qxe6+ {[%clk 0:02:29]}  fxe6 {[%clk 0:02:16]} 14. Nc3 {[%clk 0:02:30]}  a6 {[%clk 0:02:01]} 15. h4 {[%clk 0:02:29]}  Bg7 {[%clk 0:01:56]} 16. h5 {[%clk 0:02:29]}  h6 {[%clk 0:01:18]} 17. Bf4 {[%clk 0:02:26]}  e5 {[%clk 0:01:18]} 18. Be3 {[%clk 0:02:25]}  Nf6 {[%clk 0:01:12]} 19. hxg6 {[%clk 0:02:24]}  d5 {[%clk 0:01:12]} 20. Bb6 {[%clk 0:02:23]}  Bf5 {[%clk 0:01:10]} 21. Bd3 {[%clk 0:02:18]}  e4 {[%clk 0:01:00]} 22. Nh4 {[%clk 0:02:18]}  Be6 {[%clk 0:00:58]} 23. Be2 {[%clk 0:02:18]}  d4 {[%clk 0:00:53]} 24. Na4 {[%clk 0:02:17]}  O-O {[%clk 0:00:49]} 25. Nc5 {[%clk 0:02:17]}  Bd5 {[%clk 0:00:43]} 26. Nf5 {[%clk 0:02:15]}  d3 {[%clk 0:00:21]} 27. cxd3 {[%clk 0:02:07]}  exd3 {[%clk 0:00:21]} 28. Nxd3 {[%clk 0:02:05]}  Bxg2 {[%clk 0:00:20]} 29. Nxh6+ {[%clk 0:02:05]}  Bxh6 {[%clk 0:00:19]} 30. Rxh6 {[%clk 0:02:05]}  Rae8 {[%clk 0:00:19]} 31. Be3 {[%clk 0:02:03]}  Nd5 {[%clk 0:00:19]} 32. Kd2 {[%clk 0:01:59]}  Ne5 {[%clk 0:00:17]} 33. Nxe5 {[%clk 0:01:55]}  Rxe5 {[%clk 0:00:17]} 34. Bd4 {[%clk 0:01:53]}  Rfe8 {[%clk 0:00:11]} 35. Bc4 {[%clk 0:01:50]}  Kg7 {[%clk 0:00:10]} 36. Rh2 {[%clk 0:01:49]}  Bf3 {[%clk 0:00:09]} 37. Re1 {[%clk 0:01:49]}  Nf6 {[%clk 0:00:02]} 38. Rxe5 {[%clk 0:01:47]} 1-0


[Site "https://www.chess.com"]

[Event "Titled Tuesday Blitz November 29 Late 2022"]
[White "Martinez Reyes, Pedro Ramon"]
[Black "Kaganskiy, Gleb"]
[WhiteFideId "3901807"]
[BlackFideId "4132025"]
[WhiteElo "2354"]
[BlackElo "2165"]
[Result "1-0"]
[Round "02"]
[TimeControl "180+1"]
[Date "2022.11.30"]
[WhiteClock "0:01:40"]
[BlackClock "0:01:00"]

1. f4 {[%clk 0:03:00]}  e5 {[%clk 0:02:57]} 2. fxe5 {[%clk 0:03:00]}  d6 {[%clk 0:02:57]} 3. exd6 {[%clk 0:02:59]}  Bxd6 {[%clk 0:02:58]} 4. Nf3 {[%clk 0:02:59]}  g5 {[%clk 0:02:58]} 5. c3 {[%clk 0:02:59]}  g4 {[%clk 0:02:53]} 6. Qa4+ {[%clk 0:02:55]}  Bd7 {[%clk 0:02:49]} 7. Qe4+ {[%clk 0:02:55]}  Ne7 {[%clk 0:02:48]} 8. Nd4 {[%clk 0:02:48]}  Nc6 {[%clk 0:02:43]} 9. Nb5 {[%clk 0:02:48]}  f5 {[%clk 0:02:31]} 10. Nxd6+ {[%clk 0:02:47]}  cxd6 {[%clk 0:02:30]} 11. Qf4 {[%clk 0:02:35]}  Qb6 {[%clk 0:02:18]} 12. Na3 {[%clk 0:02:30]}  Be6 {[%clk 0:01:51]} 13. Qxd6 {[%clk 0:02:26]}  Kf7 {[%clk 0:01:51]} 14. e4 {[%clk 0:02:19]}  Rad8 {[%clk 0:01:50]} 15. Qf4 {[%clk 0:02:18]}  Ng6 {[%clk 0:01:47]} 16. Qg5 {[%clk 0:02:11]}  fxe4 {[%clk 0:01:33]} 17. Bc4 {[%clk 0:02:08]}  Nce5 {[%clk 0:01:01]} 18. Rf1+ {[%clk 0:02:03]}  Kg8 {[%clk 0:01:01]} 19. Bxe6+ {[%clk 0:01:56]}  Qxe6 {[%clk 0:01:01]} 20. Qxd8+ {[%clk 0:01:54]}  Kg7 {[%clk 0:01:00]} 21. Qd4 {[%clk 0:01:40]} 1-0


[Site "https://www.chess.com"]

[Event "Titled Tuesday Blitz November 29 Late 2022"]
[White "Mathur, Rithwik"]
[Black "Hambleton, Aman"]
[WhiteFideId "30913667"]
[BlackFideId "2606577"]
[WhiteElo "2011"]
[BlackElo "2538"]
[Result "0-1"]
[Round "02"]
[TimeControl "180+1"]
[Date "2022.11.30"]
[WhiteClock "0:01:07"]
[BlackClock "0:00:10"]

1. Nf3 {[%clk 0:03:00]}  d5 {[%clk 0:02:56]} 2. d4 {[%clk 0:03:01]}  c6 {[%clk 0:02:52]} 3. c4 {[%clk 0:02:59]}  Nf6 {[%clk 0:02:52]} 4. cxd5 {[%clk 0:02:58]}  cxd5 {[%clk 0:02:53]} 5. Nc3 {[%clk 0:02:58]}  Nc6 {[%clk 0:02:49]} 6. Bf4 {[%clk 0:02:58]}  a6 {[%clk 0:02:49]} 7. e3 {[%clk 0:02:57]}  Bg4 {[%clk 0:02:49]} 8. Be2 {[%clk 0:02:53]}  e6 {[%clk 0:02:43]} 9. O-O {[%clk 0:02:53]}  Rc8 {[%clk 0:02:42]} 10. Ne5 {[%clk 0:02:51]}  Bxe2 {[%clk 0:02:42]} 11. Qxe2 {[%clk 0:02:50]}  Be7 {[%clk 0:02:38]} 12. Rfc1 {[%clk 0:02:48]}  O-O {[%clk 0:02:37]} 13. Nxc6 {[%clk 0:02:41]}  Rxc6 {[%clk 0:02:38]} 14. Nd1 {[%clk 0:02:36]}  Qd7 {[%clk 0:02:37]} 15. f3 {[%clk 0:02:33]}  Rfc8 {[%clk 0:02:25]} 16. Qd2 {[%clk 0:02:33]}  Bb4 {[%clk 0:02:17]} 17. Nc3 {[%clk 0:02:26]}  Bxc3 {[%clk 0:02:00]} 18. Rxc3 {[%clk 0:02:24]}  Rxc3 {[%clk 0:02:01]} 19. bxc3 {[%clk 0:02:25]}  Qc6 {[%clk 0:01:57]} 20. Rc1 {[%clk 0:02:16]}  Nd7 {[%clk 0:01:54]} 21. Qd3 {[%clk 0:02:11]}  Nb6 {[%clk 0:01:27]} 22. e4 {[%clk 0:02:10]}  Na4 {[%clk 0:01:16]} 23. exd5 {[%clk 0:02:03]}  exd5 {[%clk 0:01:17]} 24. Bd2 {[%clk 0:01:57]}  Nb2 {[%clk 0:01:16]} 25. Qe2 {[%clk 0:01:49]}  Re8 {[%clk 0:01:15]} 26. Qf1 {[%clk 0:01:40]}  Nc4 {[%clk 0:01:11]} 27. Qf2 {[%clk 0:01:35]}  Qa4 {[%clk 0:01:07]} 28. Bf4 {[%clk 0:01:31]}  Qd7 {[%clk 0:00:44]} 29. h4 {[%clk 0:01:27]}  Qf5 {[%clk 0:00:43]} 30. Re1 {[%clk 0:01:19]}  Rxe1+ {[%clk 0:00:39]} 31. Qxe1 {[%clk 0:01:20]}  h5 {[%clk 0:00:39]} 32. Bg3 {[%clk 0:01:16]}  Kh7 {[%clk 0:00:22]} 33. Qe7 {[%clk 0:01:13]}  b6 {[%clk 0:00:17]} 34. Qb7 {[%clk 0:01:08]}  a5 {[%clk 0:00:13]} 35. Qxb6 {[%clk 0:01:07]}  Nxb6 {[%clk 0:00:10]} 0-1


[Site "https://www.chess.com"]

[Event "Titled Tuesday Blitz November 29 Late 2022"]
[White "Meduri, Aakaash"]
[Black "Popilski, Gil"]
[WhiteFideId "2032252"]
[BlackFideId "2809060"]
[WhiteElo "2113"]
[BlackElo "2537"]
[Result "0-1"]
[Round "02"]
[TimeControl "180+1"]
[Date "2022.11.30"]
[WhiteClock "0:00:08"]
[BlackClock "0:01:15"]

1. d4 {[%clk 0:03:00]}  f5 {[%clk 0:02:59]} 2. Bg5 {[%clk 0:03:00]}  Nf6 {[%clk 0:02:58]} 3. Bxf6 {[%clk 0:02:59]}  exf6 {[%clk 0:02:59]} 4. g3 {[%clk 0:02:56]}  d5 {[%clk 0:02:54]} 5. Bg2 {[%clk 0:02:52]}  c6 {[%clk 0:02:54]} 6. e3 {[%clk 0:02:51]}  Bd6 {[%clk 0:02:54]} 7. Ne2 {[%clk 0:02:51]}  O-O {[%clk 0:02:53]} 8. O-O {[%clk 0:02:51]}  Na6 {[%clk 0:02:52]} 9. c4 {[%clk 0:02:48]}  dxc4 {[%clk 0:02:51]} 10. Nd2 {[%clk 0:02:46]}  Be6 {[%clk 0:02:50]} 11. Qc2 {[%clk 0:02:37]}  Nb4 {[%clk 0:02:47]} 12. Qc3 {[%clk 0:02:37]}  b5 {[%clk 0:02:45]} 13. a3 {[%clk 0:02:37]}  Nd5 {[%clk 0:02:38]} 14. Qc2 {[%clk 0:02:35]}  Qd7 {[%clk 0:02:35]} 15. Rfc1 {[%clk 0:02:28]}  Qf7 {[%clk 0:02:32]} 16. Nf4 {[%clk 0:02:15]}  Nxf4 {[%clk 0:02:24]} 17. exf4 {[%clk 0:02:13]}  Bd5 {[%clk 0:02:23]} 18. b3 {[%clk 0:02:00]}  cxb3 {[%clk 0:02:19]} 19. Bxd5 {[%clk 0:02:00]}  Qxd5 {[%clk 0:02:11]} 20. Nxb3 {[%clk 0:01:54]}  Rfc8 {[%clk 0:01:59]} 21. a4 {[%clk 0:01:54]}  Rc7 {[%clk 0:01:56]} 22. Qd3 {[%clk 0:01:24]}  Re7 {[%clk 0:01:48]} 23. axb5 {[%clk 0:00:37]}  cxb5 {[%clk 0:01:37]} 24. Ra5 {[%clk 0:00:20]}  a6 {[%clk 0:01:35]} 25. Rca1 {[%clk 0:00:19]}  Bb4 {[%clk 0:01:33]} 26. R5a2 {[%clk 0:00:18]}  a5 {[%clk 0:01:32]} 27. f3 {[%clk 0:00:09]}  a4 {[%clk 0:01:18]} 28. Nd2 {[%clk 0:00:08]}  Bc5 {[%clk 0:01:15]} 0-1


[Site "https://www.chess.com"]

[Event "Titled Tuesday Blitz November 29 Late 2022"]
[White "Mgeladze, Tamaz"]
[Black "Firouzja, Alireza"]
[WhiteFideId "13601202"]
[BlackFideId "12573981"]
[WhiteElo "2686"]
[BlackElo "3144"]
[Result "0-1"]
[Round "02"]
[TimeControl "180+1"]
[Date "2022.11.30"]
[WhiteClock "0:00:19"]
[BlackClock "0:01:08"]

1. c4 {[%clk 0:02:57]}  Nf6 {[%clk 0:02:58]} 2. Nc3 {[%clk 0:02:57]}  g6 {[%clk 0:02:59]} 3. g3 {[%clk 0:02:57]}  Bg7 {[%clk 0:02:59]} 4. Bg2 {[%clk 0:02:58]}  O-O {[%clk 0:03:00]} 5. Nf3 {[%clk 0:02:58]}  d6 {[%clk 0:03:00]} 6. O-O {[%clk 0:02:59]}  e5 {[%clk 0:03:00]} 7. d3 {[%clk 0:02:59]}  Nc6 {[%clk 0:02:57]} 8. Rb1 {[%clk 0:03:00]}  a5 {[%clk 0:02:57]} 9. a3 {[%clk 0:03:00]}  Re8 {[%clk 0:02:57]} 10. b4 {[%clk 0:03:00]}  axb4 {[%clk 0:02:56]} 11. axb4 {[%clk 0:03:01]}  e4 {[%clk 0:02:56]} 12. dxe4 {[%clk 0:03:02]}  Nxe4 {[%clk 0:02:56]} 13. Nxe4 {[%clk 0:03:02]}  Rxe4 {[%clk 0:02:57]} 14. b5 {[%clk 0:03:03]}  Na5 {[%clk 0:02:56]} 15. Nd2 {[%clk 0:02:58]}  Re8 {[%clk 0:02:23]} 16. Bb2 {[%clk 0:02:58]}  Bf5 {[%clk 0:02:23]} 17. e4 {[%clk 0:02:48]}  Be6 {[%clk 0:02:21]} 18. Bxg7 {[%clk 0:02:46]}  Kxg7 {[%clk 0:02:22]} 19. Qc2 {[%clk 0:02:37]}  Qf6 {[%clk 0:02:20]} 20. c5 {[%clk 0:02:33]}  h5 {[%clk 0:02:13]} 21. b6 {[%clk 0:02:27]}  Nc6 {[%clk 0:01:47]} 22. bxc7 {[%clk 0:02:08]}  Ra2 {[%clk 0:01:46]} 23. Qd1 {[%clk 0:01:53]}  dxc5 {[%clk 0:01:44]} 24. Rxb7 {[%clk 0:01:18]}  Nd4 {[%clk 0:01:43]} 25. Rb8 {[%clk 0:01:13]}  Rc8 {[%clk 0:01:43]} 26. Rxc8 {[%clk 0:01:02]}  Bxc8 {[%clk 0:01:44]} 27. Nb3 {[%clk 0:01:02]}  Ne2+ {[%clk 0:01:36]} 28. Kh1 {[%clk 0:01:02]}  c4 {[%clk 0:01:37]} 29. Qd8 {[%clk 0:00:58]}  cxb3 {[%clk 0:01:17]} 30. Qxc8 {[%clk 0:00:58]}  Ra1 {[%clk 0:01:18]} 31. f4 {[%clk 0:00:19]}  Qd4 {[%clk 0:01:08]} 0-1


[Site "https://www.chess.com"]

[Event "Titled Tuesday Blitz November 29 Late 2022"]
[White "Milikow, Yoav"]
[Black "Banzea, Alexandru-Bogdan"]
[WhiteFideId "2822237"]
[BlackFideId "1232622"]
[WhiteElo "2341"]
[BlackElo "2294"]
[Result "1-0"]
[Round "02"]
[TimeControl "180+1"]
[Date "2022.11.30"]
[WhiteClock "0:00:57"]
[BlackClock "0:00:02"]

1. d4 {[%clk 0:03:00]}  Nf6 {[%clk 0:02:59]} 2. c4 {[%clk 0:03:01]}  g6 {[%clk 0:02:59]} 3. Nc3 {[%clk 0:02:59]}  Bg7 {[%clk 0:02:59]} 4. e4 {[%clk 0:03:00]}  d6 {[%clk 0:03:00]} 5. Be2 {[%clk 0:03:00]}  O-O {[%clk 0:02:59]} 6. Be3 {[%clk 0:02:58]}  e5 {[%clk 0:02:55]} 7. d5 {[%clk 0:02:58]}  Na6 {[%clk 0:02:49]} 8. g4 {[%clk 0:02:58]}  Nc5 {[%clk 0:02:49]} 9. f3 {[%clk 0:02:57]}  h5 {[%clk 0:02:49]} 10. b4 {[%clk 0:02:56]}  Na6 {[%clk 0:02:42]} 11. a3 {[%clk 0:02:56]}  c5 {[%clk 0:02:17]} 12. b5 {[%clk 0:02:55]}  Nc7 {[%clk 0:02:17]} 13. h4 {[%clk 0:02:54]}  Qd7 {[%clk 0:01:50]} 14. g5 {[%clk 0:02:49]}  Nh7 {[%clk 0:01:39]} 15. Nh3 {[%clk 0:02:47]}  Qe7 {[%clk 0:01:33]} 16. Nf2 {[%clk 0:02:42]}  f5 {[%clk 0:01:28]} 17. Nd3 {[%clk 0:02:36]}  f4 {[%clk 0:01:17]} 18. Bf2 {[%clk 0:02:32]}  Rf7 {[%clk 0:01:14]} 19. Rg1 {[%clk 0:02:30]}  Nf8 {[%clk 0:01:14]} 20. a4 {[%clk 0:02:29]}  Nd7 {[%clk 0:01:14]} 21. a5 {[%clk 0:02:28]}  Ne8 {[%clk 0:01:14]} 22. Qb3 {[%clk 0:02:27]}  Bf8 {[%clk 0:01:14]} 23. Kd2 {[%clk 0:02:27]}  Qd8 {[%clk 0:01:14]} 24. Kc2 {[%clk 0:02:27]}  Kh7 {[%clk 0:01:15]} 25. Bf1 {[%clk 0:02:27]}  Kh8 {[%clk 0:01:15]} 26. Bh3 {[%clk 0:02:27]}  Nb8 {[%clk 0:01:00]} 27. Bg2 {[%clk 0:02:15]}  Kg8 {[%clk 0:00:54]} 28. Rgd1 {[%clk 0:02:15]}  Re7 {[%clk 0:00:53]} 29. Ne2 {[%clk 0:02:11]}  Bg7 {[%clk 0:00:46]} 30. Nec1 {[%clk 0:02:11]}  Bf8 {[%clk 0:00:46]} 31. Qb2 {[%clk 0:02:12]}  Kh7 {[%clk 0:00:42]} 32. Nb3 {[%clk 0:02:11]}  Nd7 {[%clk 0:00:30]} 33. Kd2 {[%clk 0:02:09]}  Kg8 {[%clk 0:00:29]} 34. Ke2 {[%clk 0:02:10]}  Kh7 {[%clk 0:00:29]} 35. Kf1 {[%clk 0:02:10]}  Kg8 {[%clk 0:00:30]} 36. Kg1 {[%clk 0:02:11]}  Kh7 {[%clk 0:00:30]} 37. Kh2 {[%clk 0:02:11]}  Kg8 {[%clk 0:00:31]} 38. Be1 {[%clk 0:02:06]}  Kh7 {[%clk 0:00:31]} 39. Bc3 {[%clk 0:02:07]}  Bg7 {[%clk 0:00:30]} 40. Bh3 {[%clk 0:01:59]}  Nb8 {[%clk 0:00:30]} 41. Qg2 {[%clk 0:01:48]}  Bxh3 {[%clk 0:00:28]} 42. Qxh3 {[%clk 0:01:49]}  Nd7 {[%clk 0:00:27]} 43. Qf1 {[%clk 0:01:43]}  Kh8 {[%clk 0:00:26]} 44. Qe2 {[%clk 0:01:43]}  Kh7 {[%clk 0:00:27]} 45. Qb2 {[%clk 0:01:43]}  Rc8 {[%clk 0:00:26]} 46. Nbc1 {[%clk 0:01:38]}  Kg8 {[%clk 0:00:26]} 47. Ne2 {[%clk 0:01:38]}  Kh7 {[%clk 0:00:26]} 48. Qd2 {[%clk 0:01:38]}  Ra8 {[%clk 0:00:24]} 49. Qe1 {[%clk 0:01:38]}  Rc8 {[%clk 0:00:25]} 50. Qf1 {[%clk 0:01:39]}  Ra8 {[%clk 0:00:25]} 51. Qh3 {[%clk 0:01:39]}  Rc8 {[%clk 0:00:26]} 52. Rdb1 {[%clk 0:01:40]}  Ra8 {[%clk 0:00:26]} 53. Be1 {[%clk 0:01:37]}  Rc8 {[%clk 0:00:26]} 54. Qf1 {[%clk 0:01:36]}  Ra8 {[%clk 0:00:27]} 55. Bf2 {[%clk 0:01:36]}  Rc8 {[%clk 0:00:27]} 56. Qh3 {[%clk 0:01:36]}  Ra8 {[%clk 0:00:27]} 57. Nc3 {[%clk 0:01:37]}  Rc8 {[%clk 0:00:27]} 58. Na4 {[%clk 0:01:36]}  Ra8 {[%clk 0:00:28]} 59. Kg2 {[%clk 0:01:36]}  Rc8 {[%clk 0:00:28]} 60. Kf1 {[%clk 0:01:37]}  Kg8 {[%clk 0:00:28]} 61. Ke2 {[%clk 0:01:37]}  Kh7 {[%clk 0:00:29]} 62. Rd1 {[%clk 0:01:38]}  Kg8 {[%clk 0:00:29]} 63. Be1 {[%clk 0:01:36]}  Kh7 {[%clk 0:00:30]} 64. b6 {[%clk 0:01:31]}  a6 {[%clk 0:00:29]} 65. Nc3 {[%clk 0:01:30]}  Kg8 {[%clk 0:00:29]} 66. Bf2 {[%clk 0:01:31]}  Kh7 {[%clk 0:00:30]} 67. Rh1 {[%clk 0:01:31]}  Kg8 {[%clk 0:00:30]} 68. Qf1 {[%clk 0:01:31]}  Kh7 {[%clk 0:00:31]} 69. Be1 {[%clk 0:01:32]}  Kg8 {[%clk 0:00:31]} 70. Bd2 {[%clk 0:01:31]}  Kh7 {[%clk 0:00:32]} 71. Kf2 {[%clk 0:01:32]}  Kg8 {[%clk 0:00:32]} 72. Kg2 {[%clk 0:01:32]}  Kh7 {[%clk 0:00:33]} 73. Qd1 {[%clk 0:01:32]}  Kg8 {[%clk 0:00:33]} 74. Qc2 {[%clk 0:01:32]}  Kh7 {[%clk 0:00:33]} 75. Rae1 {[%clk 0:01:33]}  Kg8 {[%clk 0:00:34]} 76. Rhg1 {[%clk 0:01:33]}  Kh7 {[%clk 0:00:34]} 77. Kh1 {[%clk 0:01:33]}  Kg8 {[%clk 0:00:35]} 78. Bc1 {[%clk 0:01:34]}  Kh7 {[%clk 0:00:35]} 79. Qh2 {[%clk 0:01:33]}  Kg8 {[%clk 0:00:36]} 80. Qh3 {[%clk 0:01:34]}  Kh7 {[%clk 0:00:36]} 81. Ne2 {[%clk 0:01:34]}  Rf7 {[%clk 0:00:29]} 82. Bb2 {[%clk 0:01:33]}  Ra8 {[%clk 0:00:24]} 83. Qe6 {[%clk 0:01:30]}  Re7 {[%clk 0:00:24]} 84. Qh3 {[%clk 0:01:28]}  Rf7 {[%clk 0:00:25]} 85. Rd1 {[%clk 0:01:28]}  Rb8 {[%clk 0:00:25]} 86. Qe6 {[%clk 0:01:28]}  Re7 {[%clk 0:00:24]} 87. Qh3 {[%clk 0:01:25]}  Rf7 {[%clk 0:00:23]} 88. Bc1 {[%clk 0:01:24]}  Ra8 {[%clk 0:00:23]} 89. Nexf4 {[%clk 0:01:21]}  exf4 {[%clk 0:00:23]} 90. Nxf4 {[%clk 0:01:22]}  Ne5 {[%clk 0:00:20]} 91. Ne6 {[%clk 0:01:19]}  Qe7 {[%clk 0:00:10]} 92. f4 {[%clk 0:01:19]}  Ng4 {[%clk 0:00:10]} 93. Rdf1 {[%clk 0:01:18]}  Bd4 {[%clk 0:00:08]} 94. Rxg4 {[%clk 0:01:17]}  hxg4 {[%clk 0:00:08]} 95. Qxg4 {[%clk 0:01:18]}  Ng7 {[%clk 0:00:09]} 96. f5 {[%clk 0:01:17]}  Nxe6 {[%clk 0:00:06]} 97. dxe6 {[%clk 0:01:14]}  Rff8 {[%clk 0:00:04]} 98. Kg2 {[%clk 0:01:05]}  Rae8 {[%clk 0:00:03]} 99. h5 {[%clk 0:01:04]}  Kg8 {[%clk 0:00:02]} 100. hxg6 {[%clk 0:01:03]}  Qg7 {[%clk 0:00:03]} 101. Rh1 {[%clk 0:01:02]}  Rxe6 {[%clk 0:00:02]} 102. Rh7 {[%clk 0:00:57]} 1-0


[Site "https://www.chess.com"]